Cogmind - Beta 10.2 @@@ ROGUE MODE // 2021.02.10 @ 17:34:21 Player: Mattmos Result: Self-destructed Performance ------------- Evolutions (0) 0 Regions Visited (4) 800 Robots Destroyed (34) 170 Value Destroyed (446) 446 Prototype IDs (4) 80 Alien Tech Used (0) 0 Bonus (0) 0 TOTAL SCORE: 1496 Bonus ------- None Cogmind --------- Core Integrity 164/250 Matter 267/300 Energy 160/160 System Corruption 0% Temperature Cool (0) Movement Rolling (120) Ox3 Location -9/Mines Parts ------- > --- POWER (1) -------- Light Nuclear Core > --- PROPULSION (2) --- Armored Wheel Armored Wheel > --- UTILITY (2) ------ High-capacity Storage Unit High-capacity Storage Unit > --- WEAPON (2) ------- Beamcaster Grenade Launcher > --- INVENTORY (20) --- Ion Engine Light Ion Engine Nuclear Core Light Nuclear Core Reinforced Deuterium Engine Light Fission Core Carbon-fiber Leg Cesium-ion Thruster Cesium-ion Thruster Large Storage Unit Large Storage Unit Medium Matter Pod (0) Advanced Terrain Scanner Propulsion Shielding Thief Drone Bay (3/3) Electrolaser EM Pulse Cannon Assault Rifle Peak State ------------ > --- POWER ------------ Light Nuclear Core > --- PROPULSION ------- Armored Wheel Armored Wheel > --- UTILITY ---------- Large Storage Unit Thief Drone Bay > --- WEAPON ----------- Beamcaster Grenade Launcher > --- INVENTORY -------- Ion Engine Light Ion Engine Carbon-fiber Leg Medium Matter Pod Terrain Scanner Advanced Terrain Scanner Seismic Analyzer Propulsion Shielding Assault Rifle [Rating: 22] Favorites ----------- Power Light Nuclear Core Engine Light Ion Engine Power Core Light Nuclear Core Propulsion Armored Wheel Leg Aluminum Leg Wheel Armored Wheel Flight Unit Cesium-ion Thruster Utility Large Storage Unit Device Thief Drone Bay Storage Large Storage Unit Weapon Grenade Launcher Energy Gun Beamcaster Ballistic Gun Assault Rifle Launcher Grenade Launcher Build | -11 -10 -10 -10 -9 ------- Run | Scr Mat Min Exi Min Slots Evolved . | . . . . . Power . | . . . . . Propulsion . | . . . . . Utility . | . . . . . Weapon . | . . . . . Parts Attached 37 | 6 12 15 4 . Power 7 | 1 2 2 2 . Engine 3 | 1 2 . . . Core 4 | . . 2 2 . Reactor . | . . . . . Propulsion 17 | 3 4 10 . . Treads . | . . . . . Leg 7 | 1 3 3 . . Wheel 9 | 2 1 6 . . Hover . | . . . . . Flight 1 | . . 1 . . Utility 6 | . 2 2 2 . Device 1 | . . 1 . . Storage 5 | . 2 1 2 . Processor . | . . . . . Hackware . | . . . . . Protection . | . . . . . Artifact . | . . . . . Weapon 7 | 2 4 1 . . Energy Gun 2 | 1 . 1 . . Energy Cannon . | . . . . . Ballistic Gun 2 | 1 1 . . . Ballistic Cannon . | . . . . . Launcher 3 | . 3 . . . Special Weapon . | . . . . . Impact Weapon . | . . . . . Slashing Weapon . | . . . . . Piercing Weapon . | . . . . . Special Melee Weapon . | . . . . . Unidentified Prototypes 1 | . . 1 . . Parts Lost . | . . . . . Power . | . . . . . Propulsion . | . . . . . Utility . | . . . . . Weapon . | . . . . . Highest Loss Streak . | . . . . . Average Slot Usage (%) 98 | . 98 99 99 100 Engine 5 | . 14 1 . . Core 8 | . . 12 13 14 Leg 5 | . 13 1 . . Wheel 22 | . 14 25 28 28 Storage 27 | . 27 28 27 28 Energy Gun 8 | . . 11 14 14 Ballistic Gun 5 | . 13 1 . . Launcher 13 | . 12 14 14 14 Naked Turns . | . . . . . Heaviest Build 77 | 7 42 45 77 77 Greatest Support 26 | 20 26 24 24 24 Greatest Overweight (x) 3 | . 2 3 3 3 Average Overweight (x) 1 | . 1 1 1 3 Largest Inventory Capacity 20 | 4 16 16 20 20 Average Capacity 16 | 4 15 15 17 20 Most Carried 18 | 4 16 16 18 18 Average Carried 14 | 2 13 15 16 18 Final Capacity 20 | 4 16 16 20 20 Final Carried 18 | 3 16 16 18 18 Class Distribution -------------------- 79% | Mutant 20% | Hauler-Mutant Dominant Class ---------------- Mutant | -10/Materials Mutant | -10/Mines Hauler-Mutant | -10/Exiles Hauler-Mutant | -9/Mines Resources | -11 -10 -10 -10 -9 ----------- Run | Scr Mat Min Exi Min Matter Collected 954 | 275 416 160 90 13 Remotely . | . . . . . Salvage Created 658 | 28 572 58 . . Parts 65 | . 50 15 . . Haulers Intercepted 1 | . 1 . . . Recyclers Shooed 3 | . 3 . . . Parts Field Recycled . | . . . . . Retrieved Matter . | . . . . . Parts Self-Destructed . | . . . . . Prevented . | . . . . . Kills | -11 -10 -10 -10 -9 ------- Run | Scr Mat Min Exi Min Combat Hostiles Destroyed 20 | . 11 9 . . Guns 6 | . 4 2 . . AOE 14 | . 7 7 . . Classes Destroyed 8 | 1 7 . . . Worker 3 | 1 1 1 . . Builder 3 | . 3 . . . Tunneler 1 | . 1 . . . Hauler 1 | . 1 . . . Recycler 4 | . 4 . . . Watcher 2 | . 2 . . . Swarmer 15 | . 6 9 . . Grunt 5 | . 5 . . . Best Kill Streak 16 | 1 16 7 . . Combat Bots Only 6 | . 5 6 . . Max Kills in Single Turn 5 | 1 4 5 . . Gunslinging . | . . . . . Exploded 4 | . 3 4 . . Melee . | . . . . . Uniques/NPCs Destroyed . | . . . . . Combat | -11 -10 -10 -10 -9 -------- Run | Scr Mat Min Exi Min Damage Taken 423 | . 239 184 . . Core 86 | . 24 62 . . Absorbed by Shields . | . . . . . Core Remaining (%) 100 | 100 . . . . Volleys Fired 46 | 5 34 7 . . Largest 2 | 2 2 2 . . Hottest 105 | 60 50 105 . . Shots Fired 72 | 10 49 13 . . Gun 51 | 10 34 7 . . Cannon . | . . . . . Launcher 21 | . 15 6 . . Special . | . . . . . Kinetic 39 | 5 34 . . . Thermal 7 | . . 7 . . Explosive 21 | . 15 6 . . Electromagnetic 5 | 5 . . . . Robot Hit Streak 5 | 3 5 3 . . Robot Miss Streak 2 | 1 2 2 . . Penetration Max . | . . . . . Secondary Targets . | . . . . . Shots Hit Robots 34 | 6 24 4 . . Core Hits 47 | 1 32 14 . . Critical Hits 1 | . 1 . . . Critical Kills 1 | . 1 . . . Critical Parts Destroyed . | . . . . . Melee Attacks . | . . . . . Impact . | . . . . . Slashing . | . . . . . Piercing . | . . . . . Sneak Attacks . | . . . . . Combat Hostiles . | . . . . . Follow-up Attacks . | . . . . . Damage Inflicted 1662 | 68 1105 489 . . Guns 338 | 68 207 63 . . Cannons . | . . . . . Explosions 1324 | . 898 426 . . Melee . | . . . . . Ramming . | . . . . . Kinetic 233 | 26 207 . . . Thermal 63 | . . 63 . . Explosive 1324 | . 898 426 . . Electromagnetic 42 | 42 . . . . Impact . | . . . . . Slashing . | . . . . . Piercing . | . . . . . Highest Corruption . | . . . . . Average Corruption . | . . . . . Corruption Purged . | . . . . . Overload Shots . | . . . . . Overflow Damage 23 | . 23 . . . Projectiles . | . . . . . Explosions 23 | . 23 . . . Melee . | . . . . . Knockbacks . | . . . . . Impact . | . . . . . Kinetic . | . . . . . Secondary . | . . . . . Self-Inflicted Damage 36 | . . 36 . . Shots 4 | . . 4 . . Rammed . | . . . . . Targets Rammed . | . . . . . Kicked . | . . . . . Crushed . | . . . . . Highest Temperature 204 | . 5 204 . . Average Temperature 73 | . 3 77 . . Received Heat Transfer 81 | . 81 . . . Siege Activations . | . . . . . Robots Corrupted . | . . . . . Combat Hostiles . | . . . . . Parts Fried . | . . . . . Impact Corruptions . | . . . . . Robots Melted . | . . . . . Combat Hostiles . | . . . . . Parts Melted . | . . . . . Heat Transferred 111 | . . 111 . . Parts Sabotaged . | . . . . . Parts Stolen . | . . . . . Parts Stripped . | . . . . . Power Chain Reactions . | . . . . . Missiles Intercepted . | . . . . . Alert | -11 -10 -10 -10 -9 ------- Run | Scr Mat Min Exi Min Peak Influence 255 | 5 217 255 . . Initial 25 | . 3 25 . . Average 130 | 1 154 133 . . Maximum Alert Level 1 | . 1 1 . . Low Security (%) 73 | 100 66 74 . 100 Level 1 26 | . 33 25 . . Level 2 . | . . . . . Level 3 . | . . . . . Level 4 . | . . . . . Level 5 . | . . . . . High Security . | . . . . . Max Security . | . . . . . Squads Dispatched 3 | . 3 . . . Investigation 3 | . 3 . . . Extermination . | . . . . . Reinforcement . | . . . . . Assault . | . . . . . Garrison . | . . . . . Intercept . | . . . . . Construction Impeded . | . . . . . Haulers Reinforced . | . . . . . Stealth | -11 -10 -10 -10 -9 --------- Run | Scr Mat Min Exi Min Distress Signals 2 | . 2 . . . Communications Jammed . | . . . . . Distress Signals . | . . . . . Times Spotted 26 | . 17 9 . . Peak Tracking Total 6 | . 6 6 . . Tactical Retreats . | . . . . . Traps | -11 -10 -10 -10 -9 ------- Run | Scr Mat Min Exi Min Traps Triggered 3 | . 1 2 . . Indirectly . | . . . . . Trap Hack Attempts . | . . . . . Triggered . | . . . . . Disarmed . | . . . . . Reprogrammed . | . . . . . Reused . | . . . . . Traps Extracted . | . . . . . Installed . | . . . . . Triggered . | . . . . . Machines | -11 -10 -10 -10 -9 ---------- Run | Scr Mat Min Exi Min Machines Disabled 3 | . 2 1 . . Max in Single Turn 1 | . 1 1 . . Machines Sabotaged . | . . . . . Garrisons Compromised . | . . . . . Overloaded Fab Kills . | . . . . . Fab Network Shutdowns . | . . . . . Hacking | -11 -10 -10 -10 -9 --------- Run | Scr Mat Min Exi Min Machines Accessed 12 | . 6 2 4 . Terminals 4 | . 4 . . . Fabricators . | . . . . . Repair Stations 1 | . 1 . . . Recycling Units 1 | . 1 . . . Scanalyzers . | . . . . . Garrison Access . | . . . . . Total Hacks 83 | . 32 2 49 . Successful 77 | . 26 2 49 . Failed 6 | . 6 . . . Catastrophic . | . . . . . Database Lockouts . | . . . . . Manual . | . . . . . Terminals 20 | . 20 . . . Fabricators . | . . . . . Repair Stations 6 | . 6 . . . Recycling Units 6 | . 6 . . . Scanalyzers . | . . . . . Garrison Access . | . . . . . Terminal Hacks 66 | . 15 2 49 . Record 52 | . 3 . 49 . Prototype ID Bank 2 | . 2 . . . Open Door 2 | . . 2 . . Emergency Access Points 2 | . 2 . . . Recycling Unit Index 1 | . 1 . . . Alert Level 1 | . 1 . . . Locate Traps 2 | . 2 . . . Dispatch Records 1 | . 1 . . . Patrol Status 1 | . 1 . . . Transport Status 1 | . 1 . . . Registered Components 1 | . 1 . . . Fabricator Hacks . | . . . . . Repair Station Hacks 6 | . 6 . . . Scan Component 3 | . 3 . . . Repair 3 | . 3 . . . Recycling Unit Hacks 5 | . 5 . . . Recycle Component 3 | . 3 . . . Process 2 | . 2 . . . Scanalyzer . | . . . . . Garrison Access Hacks . | . . . . . Unauthorized Hacks . | . . . . . Terminals . | . . . . . Fabricators . | . . . . . Repair Stations . | . . . . . Recycling Units . | . . . . . Scanalyzers . | . . . . . Garrison Access . | . . . . . Data Cores Recovered . | . . . . . Used . | . . . . . Hacking Detections 5 | . 5 . . . Full Trace Events 2 | . 2 . . . Feedback Events . | . . . . . Feedback Blocked . | . . . . . Robot Schematics Acquired . | . . . . . Robots Built . | . . . . . Matter . | . . . . . Time . | . . . . . Total Robot Build Rating . | . . . . . Part Schematics Acquired . | . . . . . Parts Built . | . . . . . Matter . | . . . . . Time . | . . . . . Total Part Build Rating . | . . . . . Parts Repaired 3 | . 3 . . . Time 78 | . 78 . . . Parts Recycled 3 | . 3 . . . Recycled Matter 233 | . 233 . . . Retrieved Matter . | . . . . . Retrieved Components . | . . . . . Parts Scanalyzed . | . . . . . Part Schematics Acquired . | . . . . . Parts Damaged . | . . . . . Bothacking | -11 -10 -10 -10 -9 ------------ Run | Scr Mat Min Exi Min Used RIF Installer . | . . . . . Robots Hacked . | . . . . . Non-combat . | . . . . . Combat . | . . . . . Robot Hacks Applied . | . . . . . Relay Couplers Released . | . . . . . Robots Rewired . | . . . . . Allies Hacked . | . . . . . Hacks Repelled . | . . . . . Allies | -11 -10 -10 -10 -9 -------- Run | Scr Mat Min Exi Min Total Allies 3 | . . 3 . . Largest Group 3 | . . 3 . . Highest-Rated Group 40 | . . 40 . . Highest-Rated Ally 16 | . . 16 . . Total Orders 1 | . . 1 . . FOLLOW 1 | . . 1 . . Ally Attacks . | . . . . . Total Damage . | . . . . . Kills . | . . . . . Allies Corrupted . | . . . . . Allies Melted . | . . . . . Intel | -11 -10 -10 -10 -9 ------- Run | Scr Mat Min Exi Min Robot Analysis Total . | . . . . . Derelict Logs Recovered 1 | . . 1 . . Drone Launches . | . . . . . Drone Recoveries . | . . . . . Exploration | -11 -10 -10 -10 -9 ------------- Run | Scr Mat Min Exi Min Turns Passed 2619 | 117 921 590 916 75 Spaces Moved 2085 | 125 584 513 801 62 Core 39 | 39 . . . . Treads . | . . . . . Legs 207 | . 198 9 . . Wheels 1839 | 86 386 504 801 62 Hover . | . . . . . Flight . | . . . . . Fastest Speed 50 | 50 80 100 90 120 Average Speed 109 | 70 125 101 108 120 Slowest Speed 180 | 80 180 180 120 120 Overloaded Moves . | . . . . . Propulsion Burnouts . | . . . . . Robots Hopped . | . . . . . Cave-ins Triggered . | . . . . . Exploration Rate (%) 52 | 8 58 87 92 15 Regions Visited 4 Branch Regions 3 Pre-discovered Areas 1 | . . . 1 . Known Exits Taken 1 | . . 1 . . Unknown Exits Taken 3 | 1 1 . 1 . Scrap Searched 3 | . . 2 . 1 Spaces Dug 25 | . 18 7 . . Terrain Destroyed 131 | . 97 34 . . Melee . | . . . . . Projectile . | . . . . . AOE 131 | . 97 34 . . Terrain Rammed . | . . . . . Walls Destroyed . | . . . . . Machines Disabled . | . . . . . Actions | -11 -10 -10 -10 -9 --------- Run | Scr Mat Min Exi Min Total 2370 | 144 737 575 852 62 Wait 65 | . 50 1 14 . Move 2081 | 124 583 512 800 62 Hop . | . . . . . Pick Up 93 | 8 39 22 24 . Fast Attach . | . . . . . Attach 30 | 6 11 10 3 . Detach 4 | 1 1 2 . . Swap 7 | . 1 5 1 . Drop 44 | . 18 16 10 . Fire 46 | 5 34 7 . . Melee . | . . . . . Ram . | . . . . . Kick . | . . . . . Crush . | . . . . . Escape Stasis . | . . . . . Rewire . | . . . . . Trap . | . . . . . Miscellaneous . | . . . . . Route ------- -11/Scrapyard -10/Materials (discovered 2 exits: *Min x2) -10/Mines (discovered 3 exits: [*Mat x2] / *Exi) -10/Exiles (discovered 2 exits: [*Min x2]) -9/Mines History --------- Turn | Location | Event 2 | -11/Scrapyard | Met Revision 17 110 | -11/Scrapyard | Discovered new exit (range 8) 118 | -11/Scrapyard | Entered Materials 216 | -10/Materials | Discovered new exit (range 8) 322 | -10/Materials | Build established: Mutant 745 | -10/Materials | Repaired Grenade Launcher 771 | -10/Materials | Repaired Assault Rifle 811 | -10/Materials | Repaired Grenade Launcher 822 | -10/Materials | Discovered new exit (range 7) 1039 | -10/Materials | Entered Mines 1059 | -10/Mines | Met a Derelict who couldn't figure out how to use a Trap Extractor 1131 | -10/Mines | Discovered new exit (range 8) 1172 | -10/Mines | Discovered new exit (range 6) 1185 | -10/Mines | Found the Drone Emporium 1188 | -10/Mines | Found Prototype Device 1250 | -10/Mines | Identified Thief Drone Bay 1457 | -10/Mines | Identified exit to Exiles 1547 | -10/Mines | Found a hidden stash of uninstalled traps 1577 | -10/Mines | Assisted by bots powering up and referring to "LRC-V3" 1625 | -10/Mines | Deemed a non-threat by the Exiles lab entrance 1629 | -10/Mines | Entered Exiles 1680 | -10/Exiles | Discovered new exit (range 15) 1689 | -10/Exiles | Met 8R-AWN 1712 | -10/Exiles | Met EX-HEX 1791 | -10/Exiles | Met EX-DEC 1827 | -10/Exiles | Visited The Gauntlet 1906 | -10/Exiles | Met EX-BIN 2050 | -10/Exiles | Learned location of Zion (-7) 2149 | -10/Exiles | Discovered new exit (range 10) 2384 | -10/Exiles | Build established: Hauler-Mutant 2545 | -10/Exiles | Entered Mines 2620 | -9/Mines | Self-destructed Last Messages --------------- experiments"? Whatever! ZX-C33: The latest FarCom iteration passed all tests with flying colors, we'll be weaving between patrols like ghosts in no time! I probably said something like that last time, but hopefully no one remembers what really happened. AM-PHS: That's RA-1N3's workstation, which we keep unoccupied as a tribute. RA-1N3 was always up for doing crazy stuff, the only one brave enough to try out the Chronowheel, only to never be seen again. [Achievement: Tourist] LOCATION=UNKNOWN GOAL=ESCAPE 02585_ Searching scrap... 02585_ Found Lgt. Assault Rifle. 02585_ Found VTOL Module. 02585_ Found Lgt. Ion Engine. 02585_ Found Hvy. Assault Rifle. 02585_ Found 13 Matter. 02586_ Acquired 13 matter. 02615_ K-01 Serf collects debris. Map ----- +----------------------------------------------------+ | ?????????????????????????????????????????????????? | | ?????????????????????????????????????????????????? | | ?????????????????????????????????????????????????? | | ?????????????????????????????????????????????????? | | ?????????????????????????????????????????????????? | | ?????????????????????????????????????????????????? | | ?????????????????????????????????????????????????? | | ?????????????????????????????????????????????????? | | ?????????????????????????????????????????????????? | | ?????????????????????????????????????????????????? | | ?????????????????????????????????????????????????? | | ?????????????????????????????????????????????????? | | ?????????????????????????????????????????????????? | | ?????????????????????????????????????????????????? | | ?????????????????????####????????????????????????? | | ????????????????????? ????????????????????????? | | ??????????#####??????# #????????????????????????? | | ?????????? #??????# #????????????????????????? | | ??????????? #??????# #????????????????????????? | | ???????????# #??????# ##???????????????????????? | | ???????????# #??????# ##??????????????????????? | | ??????????## #??????# #??????????????????????? | | ?????????## ##?????# ##?????????????????????? | | ?????????# ####### ##????????????????????? | | ????????## k #????????????????????? | | ????????# @=[#????????????????????? | | ???????# ### ## * #????????????????????? | | ??????# #?# ### [##????????????????????? | | ??? ### ##?# #?####?????????????????????? | | ###??# #??# ##?????????????????????????? | | ? ## #?????# #?## ##????????????????????????? | | # ??# ??????# ### ##?????###???????????????? | | ###???#???????# ## #???## ##??????????????? | | ??????????????# #??## #??????????????? | | ??????????????# ### #### #??????????????? | | ??????????????# #?## ## #??????????????? | | ?????????????? #??## #??????????????? | | ?????????????## #???# ##??????????????? | | ??????????????#$ ???## ##???????????????? | | ??????????????? ????### ##????????????????? | | ???????????????##???????## ###?????????????????? | | ?????????????????????????#####???????????????????? | | ?????????????????????????????????????????????????? | | ?????????????????????????????????????????????????? | | ?????????????????????????????????????????????????? | | ?????????????????????????????????????????????????? | | ?????????????????????????????????????????????????? | | ?????????????????????????????????????????????????? | | ?????????????????????????????????????????????????? | | ?????????????????????????????????????????????????? | +----------------------------------------------------+ Best States ------------- Heat Dissipation 25 Energy Generation 14 Energy Capacity 250 Matter Stores 300 Matter Capacity 300 Sight Range 16 Terrain Scan Density 10 Evasion (%) 50 Item Schematics ----------------- None Robot Schematics ------------------ None Fabricated ------------ Nothing Alien Tech Used ----------------- None Achievements -------------- Librarian Loot Pinata Part-time Mechanic Risk Taker Tourist Challenges ------------ None Game ------ Seed ImpactDispersionExtractor Manual? 0 Play Time 00:41:03 Cumulative 2.9 hours Start 2021.02.08 @ 21:31:37 End 2021.02.10 @ 17:34:21 Sessions 3 Manual Loads 0 Difficulty Rogue Special Mode None Game No. 3 Rogue 3 Adventurer 0 Explorer 0 Win Type - Total 0 Types 0/0/0/0/0/0/0/0/0 Lore% 9 Gallery% 4 Achievement% 4 Wizard Run 0 Options --------- ASCII 0 Keyboard 0 Movement Mouse Keybinds 0 Fullscreen 1 Font 18/Smallcaps Map View 76x50 Tactical HUD 1 Map Filters NONE Filters NONE Steam 1 RUN: 540ede51-b17d-4212-827b-89b475a61753